bitfinex-derivatives/quotes_ETHF0:USTF0_20251012
["timestamp","ask_amount","ask_price","bid_price","bid_amount"]
[1760281230761,3.4598,3966.7,3965.6,3.2078]
[1760281230960,4.6194,3966.9,3965.6,3.2078]
[1760281230961,2.80781388,3966.5,3965.7,11.34276]
[1760281231266,0.4534,3968.4,3965.7,11.34276]
[1760281231267,3.21090501,3968.8,3966.4,3.2078]
[1760281231467,3.4598,3968.7,3967.0,3.2078]
[1760281231766,2.92271041,3968.7,3967.1,11.33873]
[1760281232067,0.00310501,3968.8,3968.3,0.45341]
[1760281232280,0.00310501,3968.8,3968.5,0.45338]
[1760281232467,4.6194,3970.0,3968.7,3.2078]
[1760281232767,1.4116,3970.0,3969.7,0.45325]
[1760281232975,2.70313525,3969.9,3968.2,3.2078]
[1760281233162,2.70313525,3969.9,3966.1,3.2078]
[1760281233163,1.3501,3968.0,3966.1,3.2078]
[1760281233364,0.45354,3967.2,3966.1,3.2078]
[1760281233565,1.3501,3968.0,3964.9,1.4578]
[1760281233566,3.2078,3967.0,3965.8,0.45369]
[1760281233766,1.3501,3968.0,3965.7,3.2078]
[1760281233767,1.3501,3968.0,3967.6,0.45348]
[1760281233970,3.2078,3967.9,3967.6,0.00292371]
[1760281234173,3.3618,3966.7,3965.1,3.2078]
[1760281234368,3.2078,3966.0,3965.3,0.45374]
[1760281234570,3.2078,3966.5,3965.1,3.2078]
[1760281234969,3.2078,3966.5,3965.1,3.25167577]
[1760281235175,11.33022,3970.1,3966.3,0.45363]
[1760281235176,3.2078,3966.9,3966.3,0.45363]
[1760281235371,3.2078,3966.9,3965.7,1.13427]
[1760281235571,3.2078,3966.9,3966.7,0.45358]
[1760281235767,3.2078,3966.9,3966.0,3.2078]
[1760281235967,3.3618,3966.3,3965.1,0.0031695]
[1760281236268,3.3618,3965.1,3963.1,3.2078]
[1760281236465,6.5696,3965.4,3963.5,3.2078]
[1760281236669,3.2078,3964.8,3963.5,3.25169292]
[1760281236874,1.3501,3966.0,3964.4,3.2078]
[1760281237073,0.00243101,3966.0,3964.5,1.4578]
[1760281237282,0.00243101,3966.0,3965.4,3.2078]
[1760281237476,0.00243101,3966.0,3965.8,3.2078]
[1760281237668,0.4537,3965.8,3964.5,1.4578]
[1760281237869,0.45369,3965.9,3964.5,1.4578]
[1760281238066,3.2078,3965.7,3964.5,1.4578]
[1760281238271,6.32835338,3965.7,3964.4,0.00179864]
[1760281238476,3.2078,3964.6,3964.4,0.00179864]
[1760281238677,3.2078,3965.0,3964.4,0.00179864]
[1760281238877,3.2078,3965.4,3964.4,3.20959864]
[1760281239077,0.00243101,3966.0,3965.2,3.2078]
[1760281239276,3.2078,3967.5,3965.8,3.2078]
[1760281239473,6.5696,3967.9,3966.5,0.45361]
[1760281239669,3.2078,3967.4,3966.2,3.2078]
[1760281239868,3.2078,3967.4,3965.7,1.4554]
[1760281239869,1.3501,3968.0,3967.0,3.2078]
[1760281240078,0.45351,3967.5,3967.0,3.2078]
[1760281240375,0.00268004,3967.5,3967.3,3.2078]
[1760281240681,3.2078,3967.4,3967.3,0.001863]
[1760281240976,0.45619004,3967.5,3966.8,3.2078]
[1760281240977,0.00268004,3967.5,3966.8,3.2078]
[1760281241375,11.32905,3970.5,3967.4,3.2078]
[1760281241376,0.45339,3968.5,3967.4,3.2078]
[1760281241575,3.2078,3969.7,3967.9,3.2078]
[1760281241775,3.2078,3969.3,3968.0,3.2078]
[1760281241981,3.2078,3968.9,3968.0,3.2078]
[1760281242179,0.45336,3968.8,3968.0,3.2078]
[1760281242474,0.45336,3968.8,3966.9,3.2078]
[1760281242475,0.45345,3968.0,3966.9,3.2078]
[1760281242682,0.45343,3968.2,3967.7,3.2078]
[1760281242877,3.2078,3968.5,3967.1,6.6397]
[1760281243069,3.2078,3968.5,3965.4,1.13435]
[1760281243070,3.2078,3969.5,3968.4,3.2078]
[1760281243274,0.45319,3970.3,3969.2,3.2078]
[1760281243474,0.5,3972.0,3970.2,3.2078]
[1760281243777,0.453,3971.9,3971.4,3.2078]
[1760281243972,0.45311,3971.0,3970.8,2.41207]
[1760281244171,11.33297,3969.2,3966.7,6.2716]
[1760281244471,11.32944,3970.4,3964.2,11.34703]
[1760281244472,3.2078,3969.8,3968.9,3.2078]
[1760281244676,3.2078,3969.8,3967.6,3.51728]
[1760281244677,3.2078,3969.8,3968.5,3.2078]
[1760281244877,3.2078,3970.2,3969.0,3.2078]
[1760281245073,3.20989882,3970.2,3969.0,3.66361802]
[1760281245281,3.2999,3971.3,3970.1,3.2078]
[1760281245470,3.2078,3971.5,3969.2,3.0638]
[1760281245471,3.2078,3971.5,3970.6,3.2078]
[1760281245670,3.2078,3971.5,3970.0,6.2716]
[1760281245877,3.2078,3971.5,3970.0,3.0638]
[1760281246072,3.2078,3970.3,3969.2,3.0638]
[1760281246274,3.2078,3969.4,3968.2,3.0638]
[1760281246671,3.2078,3969.4,3968.5,3.2078]
[1760281246880,3.2078,3970.2,3969.3,0.45328]
[1760281247174,0.0027586,3970.3,3969.6,3.2078]
[1760281247383,0.0027586,3970.3,3969.2,3.0638]
[1760281247578,0.0027586,3970.3,3970.0,0.45321]
[1760281247782,3.7078,3972.0,3970.1,3.0638]
[1760281248079,0.17775561,3972.0,3971.7,0.45301]
[1760281248287,3.2078,3972.9,3972.3,0.45294]
[1760281248579,3.2078,3972.9,3972.0,2.886]
[1760281248580,3.31651957,3971.9,3971.8,0.45301]
[1760281248881,3.2078,3972.8,3971.8,2.88850228]
[1760281249086,3.2078,3973.2,3971.8,2.88850228]
[1760281249283,3.2078,3972.8,3971.8,0.00250228]
[1760281249580,0.45291,3972.7,3971.8,0.00250228]
[1760281249887,3.2078,3972.4,3971.9,0.45299]
[1760281250176,0.00295878,3972.7,3971.8,0.00250228]
[1760281250381,0.00295878,3972.7,3972.6,0.45292]
[1760281250683,3.2078,3973.7,3973.6,0.4528]
[1760281251180,12.44284,3976.6,3974.0,0.45276]
[1760281251181,3.2078,3974.1,3974.0,0.45276]
[1760281251383,3.2078,3974.6,3974.0,2.886]
[1760281251579,3.20981062,3974.6,3974.5,0.4527]
[1760281251776,6.21504239,3976.2,3973.5,11.32043]
[1760281251777,3.2078,3975.5,3975.4,0.45259]
[1760281252081,3.2078,3975.5,3974.9,2.884]
[1760281252284,3.2078,3975.5,3974.9,0.45263]
[1760281252476,40.8,3976.6,3974.6,0.45267]
[1760281252477,3.2078,3975.1,3974.6,0.45267]
[1760281252684,3.2078,3975.1,3974.0,3.2078]
[1760281252882,3.2078,3974.2,3974.0,0.00290714]
[1760281253081,3.2078,3974.6,3974.0,0.00290714]
[1760281253383,0.00190406,3975.1,3974.3,0.45271]
[1760281253585,0.00190406,3975.1,3972.9,14.20582]
[1760281253586,3.2078,3974.4,3974.2,0.45271]
[1760281253782,0.00190406,3975.1,3975.0,0.45263]
[1760281254379,0.00190406,3975.1,3975.0,0.45439363]
[1760281254585,3.2078,3976.3,3975.9,0.45253]
[1760281254881,3.2078,3976.3,3975.0,0.00176363]
[1760281255086,3.2078,3976.3,3975.7,0.45254]
[1760281255288,2.67422,3976.3,3976.2,0.4525]
[1760281255484,0.00275653,3976.3,3976.1,3.2078]
[1760281255687,0.00275653,3976.3,3974.9,1.3603]
[1760281255688,0.00275653,3976.3,3976.2,0.4525]
[1760281256285,0.00275653,3976.3,3975.0,3.20956363]
[1760281256488,0.00275653,3976.3,3975.7,3.2078]
[1760281256787,3.2078,3976.2,3975.1,3.2078]
[1760281256992,3.2078,3976.2,3975.0,0.00176363]
[1760281256993,0.45251,3976.1,3975.0,0.00176363]
[1760281257188,3.2078,3975.8,3975.0,0.00176363]
[1760281257394,3.66039,3975.5,3975.0,0.00176363]
[1760281257586,3.2999,3975.4,3974.2,3.2078]
[1760281257794,3.2999,3975.4,3974.6,0.45267]
[1760281258095,0.4526,3975.4,3974.3,3.2078]
[1760281258287,3.2999,3975.8,3974.3,3.2078]
[1760281258490,2.87645789,3975.3,3974.6,0.45267]
[1760281258794,3.2078,3975.1,3974.9,0.45264]
[1760281259091,3.2078,3975.7,3975.6,0.45257]
[1760281259293,3.2078,3976.2,3976.1,0.45251]
[1760281259496,6.5077,3976.2,3976.1,0.45251]
[1760281259792,0.22,3977.3,3976.2,0.4525]
[1760281259793,4.5579,3976.7,3976.2,0.4525]
[1760281260002,1.3501,3976.7,3976.2,0.4525]
[1760281260194,4.5579,3976.7,3976.2,0.4525]
[1760281260390,0.22,3977.3,3977.2,0.45238]
[1760281260596,3.2078,3978.1,3978.0,0.45229]
[1760281260794,3.2999,3979.0,3977.2,3.2078]
[1760281260795,3.2078,3978.6,3977.2,3.2078]
[1760281261001,0.4522,3978.8,3977.7,3.2078]
[1760281261201,3.2078,3978.4,3978.2,0.45226]
[1760281261497,0.45209,3979.8,3978.3,0.2287]
[1760281261695,3.2078,3979.4,3978.3,1.13065]
[1760281261892,3.2078,3979.0,3978.2,0.00231549]
[1760281262097,3.2078,3979.0,3978.8,0.45219]
[1760281262403,3.2078,3979.0,3978.2,0.00231549]
[1760281262404,2.6375949,3978.9,3978.6,0.45222]
[1760281262701,0.0018931,3979.8,3979.6,0.4521]
[1760281263004,2.25863,3983.1,3978.8,0.2204]
[1760281263005,3.2078,3981.9,3980.5,1.13002]
[1760281263195,3.2078,3981.9,3981.6,0.45188]
[1760281263397,3.2078,3981.9,3981.8,0.45186]
[1760281263599,3.2013,3982.7,3980.9,3.2078]
[1760281263600,3.2078,3982.3,3980.9,3.2078]
[1760281263800,3.2078,3981.9,3981.2,0.45193]
[1760281264101,3.2078,3982.0,3980.9,0.00284296]
[1760281264296,3.2078,3982.0,3981.5,0.45189]
[1760281264495,3.2078,3981.6,3981.2,0.45193]
[1760281264695,3.2078,3981.6,3980.9,0.00284296]
[1760281264896,0.00227126,3982.3,3982.2,0.45182]
[1760281265097,3.2078,3984.7,3984.6,0.45154]
[1760281265296,3.2078,3984.7,3984.1,0.45159]
[1760281265496,3.2078,3984.7,3982.8,11.29378]
[1760281265497,3.2078,3984.3,3983.0,3.2078]
[1760281265708,3.2078,3984.7,3984.4,0.45157]
[1760281265897,3.2078,3984.7,3984.4,0.45156]
[1760281266204,3.2078,3984.7,3983.3,11.29238]
[1760281266205,3.2078,3982.3,3979.6,0.4521]
[1760281266507,3.2078,3980.5,3980.3,3.65982]
[1760281266802,3.2078,3981.4,3980.1,6.4156]
[1760281267002,3.2078,3981.4,3980.1,3.2078]
[1760281267196,0.00212358,3981.4,3981.3,3.2078]
[1760281267397,0.00212358,3981.4,3981.2,0.45193]
[1760281267398,3.20992358,3981.4,3980.1,0.00307167]
[1760281267598,3.2078,3980.5,3979.9,0.45207]
[1760281267806,3.2078,3980.9,3979.6,3.2078]
[1760281268100,2.79219898,3981.4,3979.9,3.2078]
[1760281268101,3.2078,3980.8,3979.9,3.2078]
[1760281268302,3.2078,3980.8,3980.4,0.45201]
[1760281268602,3.2078,3980.8,3980.5,0.452]
[1760281268801,0.00212358,3981.4,3980.6,0.45199]
[1760281269002,0.00212358,3981.4,3980.7,0.45198]
[1760281269210,3.2078,3981.1,3980.4,0.00221665]
[1760281269507,0.00212358,3981.4,3981.0,3.2078]
[1760281269698,0.00212358,3981.4,3981.1,0.45195]
[1760281269896,0.00212358,3981.4,3981.3,0.45193]
[1760281270096,0.00212358,3981.4,3980.8,3.2078]
[1760281270595,3.2078,3981.9,3980.4,0.00221665]
[1760281270596,3.2078,3981.9,3981.6,0.45188]
[1760281270803,3.2078,3981.9,3981.1,0.45195]
[1760281271101,3.2078,3981.9,3981.7,3.2057]
[1760281271305,3.2078,3982.0,3981.2,3.2057]
[1760281271506,3.2078,3982.8,3981.9,3.2078]
[1760281271702,3.2078,3982.8,3981.6,1.12974]
[1760281271703,0.00233803,3982.8,3982.6,0.45177]
[1760281272000,0.00233803,3982.8,3982.4,3.2078]
[1760281272209,0.00233803,3982.8,3982.6,0.45177]
[1760281273707,3.2078,3984.0,3983.9,0.45163]
[1760281273910,3.2078,3984.4,3984.1,0.4516]
[1760281274205,3.2078,3984.4,3983.9,0.45162]
[1760281274407,3.2013,3983.9,3983.1,0.45172]
[1760281274606,6.41227047,3983.9,3983.1,0.00220213]
[1760281274802,1.12864,3985.5,3983.1,0.00220213]
[1760281274803,3.2078,3987.5,3985.9,11.28523]
[1760281275002,3.2078,3987.5,3987.4,0.45124]
[1760281275304,3.2078,3987.5,3986.0,11.28482]
[1760281275305,3.2013,3987.2,3987.1,0.45127]
[1760281275606,3.2078,3988.4,3988.2,0.45114]
[1760281275808,0.00205297,3988.4,3988.2,0.45386832]
[1760281276803,0.00205297,3988.4,3987.2,11.2814]
[1760281276804,9.06897947,3988.3,3987.8,0.45119]
[1760281277000,0.00205297,3988.4,3988.3,0.45113]
[1760281277206,5.86323244,3988.4,3988.3,0.45113]
[1760281277405,5.86323244,3988.4,3986.7,3.2078]
[1760281277607,6.4091,3988.1,3987.9,0.45118]
[1760281277808,3.2078,3988.1,3987.9,0.45415216]
[1760281278008,0.00205297,3988.4,3988.3,0.45113]
[1760281278207,3.2078,3989.8,3988.3,3.2078]
[1760281278512,3.2078,3989.8,3988.2,11.27869]
[1760281278513,3.2078,3990.4,3990.2,0.45091]
[1760281278702,3.2013,3991.8,3989.3,12.40316]
[1760281278703,3.2078,3990.9,3990.8,0.45085]
[1760281278904,3.2078,3990.9,3989.8,4.33522]
[1760281279116,10.40967947,3989.9,3989.5,0.45099]
[1760281279311,9.06247947,3989.6,3989.5,0.00216837]
[1760281279606,2.2002111,3989.6,3989.5,0.45099]
[1760281280007,4.4004222,3989.6,3989.1,0.45103]
[1760281280201,6.4091,3989.2,3989.1,0.45104]
[1760281280402,6.4091,3989.2,3987.2,3.2078]
[1760281280602,6.4091,3989.2,3986.2,11.28413]
[1760281280603,3.2078,3987.8,3986.4,1.12836]
[1760281280806,3.2078,3988.8,3987.6,0.4512]
[1760281281006,3.2078,3988.8,3987.3,14.48884]
[1760281281007,3.2078,3988.8,3987.4,1.12807]
[1760281281313,2.2002111,3989.1,3989.0,0.45105]
[1760281281611,1.2449611,3989.1,3989.0,0.45322253]
[1760281281802,2.1544533,3989.6,3989.5,0.45099]
[1760281282007,2.53721033,3990.7,3990.6,0.45087]
[1760281282206,3.2078,3991.1,3990.9,0.45082]
[1760281282411,3.2013,3991.0,3990.9,0.45082]
[1760281282907,6.04379004,3991.0,3989.3,3.2078]
[1760281283114,3.2078,3990.4,3990.3,0.4509]
[1760281283308,3.2078,3990.9,3990.8,0.45084]
[1760281283710,9.17442397,3990.9,3988.8,1.12768]
[1760281283908,3.2078,3990.6,3989.2,3.2078]
[1760281284209,0.00192442,3991.0,3990.9,0.45083]
[1760281284411,0.00192442,3991.0,3990.9,3.65863]
[1760281285008,0.00192442,3991.0,3990.9,0.45083]
[1760281285812,3.20972442,3991.0,3990.9,0.45083]
[1760281286017,0.00192442,3991.0,3990.9,0.45083]
[1760281286209,0.00192442,3991.0,3990.1,3.2078]
[1760281286511,0.00192442,3991.0,3988.2,11.2785]
[1760281286512,3.2013,3990.5,3990.0,0.45093]
[1760281286715,3.2013,3990.1,3989.3,3.2078]
[1760281287214,3.2078,3990.2,3989.0,1.12979253]
[1760281287215,6.4091,3990.2,3989.0,0.00217253]
[1760281287413,3.65882,3989.3,3987.9,3.2078]
[1760281287608,1.3407,3988.8,3987.9,3.17636977]
[1760281287807,3.2078,3988.0,3987.1,3.2078]
[1760281288010,3.2078,3988.0,3986.7,3.2078]
[1760281288210,3.65901,3987.6,3986.7,3.2078]
[1760281288417,6.4091,3987.1,3986.7,0.00194916]
[1760281288712,3.2013,3985.5,3983.7,3.65944]
[1760281288915,0.45151,3984.9,3984.0,3.2078]
[1760281289106,0.45151,3984.9,3982.2,1.12952]
[1760281289107,3.2078,3985.1,3983.9,0.45162]
[1760281289314,3.2078,3985.6,3984.7,3.2078]
[1760281289709,3.2078,3986.1,3984.7,3.21071309]
[1760281289915,0.45151,3985.0,3984.7,0.00291309]
[1760281290116,1.12842,3986.2,3981.8,1.12963]
[1760281290117,0.45156,3984.5,3983.2,3.2078]
[1760281290415,3.2078,3984.8,3984.0,3.2078]
[1760281290613,3.2078,3985.7,3984.7,3.2078]
[1760281291016,3.20968861,3985.7,3984.7,3.21056351]
[1760281291208,0.00188861,3985.7,3985.2,3.2078]
[1760281291519,0.00188861,3985.7,3984.7,0.00276351]
[1760281291520,3.2078,3985.6,3984.7,0.00276351]
[1760281291916,0.00188861,3985.7,3985.0,3.2078]
[1760281292120,0.00188861,3985.7,3985.5,0.45144]
[1760281292414,12.78164,3990.1,3985.7,1.12854]
[1760281292415,3.2078,3988.0,3985.7,1.12854]
[1760281292607,3.2078,3988.0,3985.6,1.12856]
[1760281292608,3.2078,3988.0,3986.7,0.4513]
[1760281292815,3.2078,3988.0,3986.9,0.45128]
[1760281293008,3.65897,3988.0,3986.6,3.65911]
[1760281293213,3.2078,3987.6,3986.6,3.2078]
[1760281293533,0.45117,3987.9,3986.6,3.2078]
[1760281293717,3.2078,3987.6,3986.6,3.2078]
[1760281294016,3.2078,3987.6,3986.9,0.45128]
[1760281294214,3.2078,3987.6,3986.7,3.2078]
[1760281294522,3.21041726,3988.0,3987.0,0.45126]
[1760281294718,3.21041726,3988.0,3987.5,0.45122]
[1760281294719,0.00261726,3988.0,3987.5,0.45122]
[1760281295027,0.45117,3987.9,3987.5,0.00259525]
[1760281295224,3.2756,3987.9,3987.5,0.00259525]
[1760281295410,0.00261726,3988.0,3987.5,0.00259525]
[1760281295611,0.00261726,3988.0,3987.8,0.45118]
[1760281295910,3.72677,3987.9,3987.5,0.00259525]
[1760281296115,3.2078,3987.6,3987.5,0.00259525]
[1760281296423,3.2756,3987.4,3985.7,3.2078]
[1760281296611,3.2078,3987.1,3985.7,3.2078]
[1760281296919,3.2078,3986.5,3985.7,3.2078]
[1760281297314,1.72636,3987.2,3986.1,3.2078]
[1760281297315,1.2751,3987.2,3986.1,3.2078]
[1760281297515,3.2756,3987.5,3986.7,3.2078]
[1760281297721,3.2078,3987.0,3986.2,3.2078]
[1760281297919,3.2078,3987.0,3986.0,0.45138]
[1760281298221,3.2078,3987.0,3986.1,3.2078]
[1760281298417,3.2078,3986.6,3985.7,3.21037922]
[1760281298613,3.2078,3986.6,3985.7,0.00257922]
[1760281298813,3.2078,3985.9,3985.7,0.00257922]
[1760281299020,3.2756,3985.8,3985.7,0.00257922]
[1760281299223,3.2078,3985.9,3985.7,0.00257922]
[1760281299418,0.45136,3986.2,3985.7,0.00257922]
[1760281299619,1.2751,3987.2,3985.9,3.2078]
[1760281299821,1.2751,3987.2,3986.5,3.2078]
[1760281300119,0.45118,3987.8,3987.0,3.2078]
[1760281300322,44.0756,3987.9,3987.0,3.2078]
[1760281300619,0.45134,3986.5,3985.7,0.00257922]
[1760281300820,3.2078,3986.5,3985.7,0.00257922]
[1760281301021,3.2078,3986.5,3985.8,3.2078]
[1760281301322,4.5507,3987.0,3986.0,0.45138]
[1760281301524,0.45129,3986.9,3985.9,0.45139]
[1760281301713,3.2078,3987.6,3986.3,3.2078]
[1760281301914,6.4834,3987.9,3986.9,3.2078]
[1760281302126,6.4834,3987.9,3986.3,1.12838]
[1760281302323,0.45115,3988.2,3987.4,0.45123]
[1760281302524,0.45116,3988.1,3987.5,3.65902]
[1760281302823,3.2078,3988.3,3987.8,0.45119]
[1760281303023,3.2078,3989.3,3988.7,0.45109]
[1760281303213,3.2078,3989.3,3989.1,0.45104]
[1760281303415,3.2078,3990.2,3988.8,3.2078]
[1760281303724,3.2078,3990.2,3988.5,1.12778]
[1760281303725,1.3407,3990.4,3989.7,3.2078]
[1760281304020,1.3407,3990.4,3990.2,0.45092]
[1760281304222,1.34333257,3990.4,3989.7,3.2108515]
[1760281304418,0.00263257,3990.4,3990.2,0.45091]
[1760281305024,0.00263257,3990.4,3989.7,0.0030515]
[1760281305323,3.2078,3990.2,3989.7,0.0030515]
[1760281305720,3.65876,3989.8,3989.7,0.0030515]
[1760281306022,11.27602,3989.2,3987.5,3.2078]
[1760281306221,3.2078,3988.2,3986.7,3.2078]
[1760281306422,44.0078,3988.2,3986.7,3.2078]
[1760281306617,44.0078,3988.2,3985.7,1.12857]
[1760281306618,0.45125,3987.4,3987.2,3.2078]
[1760281306815,3.2059,3987.4,3986.5,3.2078]
[1760281307015,0.00193937,3987.4,3987.0,3.2078]
[1760281307220,0.00193937,3987.4,3987.2,0.45126]
[1760281307427,0.00193937,3987.4,3987.0,3.65907]
[1760281307615,0.00193937,3987.4,3987.2,0.45125]
[1760281308021,3.2078,3989.5,3989.0,0.45105]
[1760281308321,3.2078,3989.5,3987.4,11.28087]
[1760281308322,3.65872,3990.2,3988.8,3.2078]
[1760281308521,0.45093,3990.2,3989.2,3.2078]
[1760281308822,0.45093,3990.2,3988.7,3.2078]
[1760281308823,0.45101,3989.5,3988.7,3.2078]
[1760281309136,7.54324982,3989.5,3987.9,3.2078]
[1760281309420,3.66084982,3989.5,3988.9,3.2078]
[1760281309620,0.4511,3988.7,3988.2,3.2078]
[1760281309827,1.12767,3988.9,3987.2,3.2078]
[1760281310027,0.45122,3987.6,3987.1,3.2078]
[1760281310322,3.2078,3988.7,3987.4,1.12809]
[1760281310529,3.2078,3988.7,3988.0,3.2078]
[1760281310721,3.2078,3988.7,3988.4,0.45112]
[1760281311023,3.2078,3988.7,3988.0,3.2078]
[1760281311024,0.4511,3988.6,3988.0,3.2078]
[1760281311224,3.2078,3989.1,3987.7,0.4512]
[1760281311418,3.2078,3989.1,3988.2,0.45115]
[1760281311621,0.45113,3988.4,3987.8,0.45118]
[1760281311824,2.61325954,3989.0,3988.1,3.2078]
[1760281312126,0.00204982,3989.5,3989.3,0.45102]
[1760281312327,0.00204982,3989.5,3989.2,3.2078]
[1760281312527,0.00204982,3989.5,3989.3,0.4528156]
[1760281312727,3.2078,3991.0,3990.8,0.45084]
[1760281313225,1.14855,3992.8,3990.9,3.2078]
[1760281313226,0.45068,3992.3,3990.9,3.2078]
[1760281313425,0.45065,3992.6,3992.0,0.4507]
[1760281313625,0.45065,3992.6,3991.7,3.2078]
[1760281313626,0.022,3992.8,3992.3,3.2078]
[1760281313830,3.23163191,3992.8,3991.8,0.45073]
[1760281314032,3.23163191,3992.8,3991.6,1.12688]
[1760281314328,0.45066,3992.5,3991.6,3.2078]
[1760281314521,0.45066,3992.5,3991.8,0.45073]
[1760281314724,3.2078,3992.2,3991.2,3.2078]
[1760281314933,0.45073,3991.9,3991.4,0.45077]
[1760281315133,3.2059,3991.6,3991.2,0.00294924]
[1760281315330,3.2078,3991.3,3991.2,0.00294924]
[1760281315532,3.2059,3991.3,3991.2,0.00294924]
[1760281315731,0.45077,3991.4,3991.2,0.00294924]
[1760281315934,3.2078,3991.7,3991.2,0.00294924]
[1760281316136,3.65859,3991.3,3991.2,0.00294924]
[1760281316432,3.65859,3991.3,3988.2,13.534]
[1760281316433,0.4509,3990.4,3989.8,0.45095]
[1760281316628,3.2078,3990.4,3989.8,3.65875]
[1760281316828,0.45087,3990.6,3990.0,0.45092]
[1760281317029,3.2059,3991.3,3990.4,3.2078]
[1760281317223,3.2078,3991.6,3990.8,3.2078]
[1760281317432,3.2078,3991.6,3990.8,3.2109469]
[1760281317632,0.45077,3991.5,3991.1,0.4508]
[1760281317924,3.2078,3991.2,3990.8,0.0031469]
[1760281318131,42.1244,3992.0,3991.6,0.45075]
[1760281318132,1.3244,3992.0,3991.6,0.45075]
[1760281318329,0.45074,3991.7,3991.0,3.65861]
[1760281318529,1.3244,3992.0,3991.4,3.2078]
[1760281318728,1.3244,3992.0,3990.8,1.1302369]
[1760281318729,0.45075,3991.7,3991.2,0.45079]
[1760281318933,3.2078,3991.7,3990.8,0.0031469]
[1760281319133,3.2078,3991.7,3990.9,0.45083]
[1760281319330,3.2078,3991.7,3990.8,0.0031469]
[1760281319528,3.2078,3991.7,3991.0,3.2078]
[1760281319729,1.3244,3992.0,3991.9,0.45072]
[1760281319936,6.4137,3992.6,3992.5,0.45065]
[1760281320137,3.2078,3992.6,3992.5,0.45065]
[1760281320438,1.3244,3994.5,3992.7,0.45063]
[1760281320439,1.91e-06,3992.8,3992.7,0.45063]
[1760281320735,1.3244,3994.5,3992.8,11.26541]
[1760281320936,1.3244,3994.5,3992.4,11.26653]
[1760281320937,1.3244,3994.5,3994.3,0.45044]
[1760281321239,3.2078,3995.4,3994.1,1.12618]
[1760281321531,3.2078,3995.4,3994.5,3.2078]
[1760281321738,1.3244,3996.0,3991.0,2.01299629]
[1760281321739,1.3244,3994.5,3993.0,0.45059]
[1760281321934,3.2078,3993.2,3992.5,0.45064]
[1760281322232,1.3244,3994.5,3994.3,0.45045]
[1760281322233,6.00244602,3994.4,3994.3,0.45045]
[1760281322425,4.5322,3994.5,3993.5,3.2078]
[1760281322631,0.22296038,3995.3,3995.2,0.45035]
[1760281322826,0.22296038,3995.3,3995.2,0.00195111]
[1760281323026,6.13513678,3995.3,3995.2,0.00195111]
[1760281323231,6.13513678,3995.3,3993.5,3.2078]
[1760281323232,6.13513678,3995.3,3994.2,3.2078]
[1760281323545,6.13513678,3995.3,3993.0,2.25303]
[1760281323546,3.2078,3995.0,3993.0,1.12651]
[1760281323725,3.2078,3994.5,3993.5,3.2078]
[1760281323930,3.2078,3994.5,3992.3,3.2078]
[1760281323931,3.2366,3993.8,3992.3,3.2078]
[1760281324132,3.2078,3992.5,3991.7,0.45074]
[1760281324336,3.21003393,3992.5,3991.5,3.2078]
[1760281324535,3.2078,3992.0,3991.2,0.00188609]
[1760281325031,0.00223393,3992.5,3991.3,3.2078]
[1760281325236,0.00223393,3992.5,3992.2,0.45068]
[1760281325432,3.2366,3992.2,3991.2,0.00188609]
[1760281325635,3.2078,3991.3,3989.8,1.1274]
[1760281325838,3.2078,3991.3,3990.0,3.2078]
[1760281326138,1.158,3990.1,3988.7,3.2078]
[1760281326332,1.158,3990.1,3986.7,2.25656]
[1760281326333,0.07069523,3993.9,3992.7,11.266]
[1760281326529,0.22,3995.3,3993.8,14.47058]
[1760281326739,0.22,3995.3,3994.8,3.2078]
[1760281326933,1.3542,3995.0,3994.8,3.17932593]
[1760281327129,1.3542,3995.0,3994.9,0.45039]
[1760281327337,1.35598577,3995.0,3994.8,3.2078]
[1760281327535,0.5012,3994.9,3994.8,3.21030536]
[1760281327734,1.35598577,3995.0,3994.9,0.45039]
[1760281328146,1.3542,3996.7,3996.4,0.45022]
[1760281328340,3.2366,3998.6,3997.3,0.45011]
[1760281328529,3.2366,3998.6,3995.7,12.3833]
[1760281328530,3.2078,3996.1,3994.1,0.80117717]
[1760281328840,44.0078,3994.9,3993.4,0.45055]
[1760281329037,44.0078,3994.9,3993.2,3.2078]
[1760281329038,3.2078,3995.0,3994.1,0.45047]
[1760281329339,3.2078,3994.6,3993.7,0.2046]
[1760281329541,3.2078,3994.3,3993.2,0.2046]
[1760281329737,3.21089413,3994.3,3992.9,3.2078]
[1760281330035,2.66402145,3994.2,3992.9,3.2078]
[1760281330241,0.00309413,3994.3,3993.5,3.2078]
[1760281330543,0.00309413,3994.3,3992.4,3.3722]
[1760281330544,3.2078,3993.8,3992.6,3.2078]
[1760281330730,3.2078,3993.8,3992.9,0.2046]
[1760281330932,3.2078,3993.1,3992.4,3.3722]
[1760281331140,2.90607192,3993.7,3993.0,3.6584]
[1760281331339,3.2078,3994.0,3993.5,0.45055]
[1760281331540,3.2078,3994.0,3993.0,3.2078]
[1760281331541,0.00309413,3994.3,3994.2,0.45047]
[1760281331744,0.00309413,3994.3,3993.8,3.2078]
[1760281332037,0.00309413,3994.3,3991.9,1.12681]
[1760281332038,2.76858772,3994.2,3994.1,3.3722]
[1760281332339,0.00309413,3994.3,3993.5,3.2078]
[1760281332544,0.00309413,3994.3,3992.8,11.26561]
[1760281332545,0.00309413,3994.3,3994.2,7.03047]
[1760281332733,0.00309413,3994.3,3994.2,7.23507]
[1760281332936,0.00309413,3994.3,3994.2,6.7846]
[1760281333134,0.00309413,3994.3,3993.5,0.45053]
[1760281333338,0.00309413,3994.3,3992.2,1.12672]
[1760281333339,3.2078,3993.7,3992.5,3.82285]
[1760281333638,0.45063,3992.7,3991.9,3.2078]
[1760281333841,3.2366,3993.4,3991.6,3.3722]